bitfinex/quotes_SOLUSD_20240714
["timestamp","ask_amount","ask_price","bid_price","bid_amount"]
[1720983883975,18.0375,145.4,145.35,11.16]
[1720983884150,1.86199084,145.39,145.35,11.16]
[1720983884350,18.0375,145.4,145.35,11.16]
[1720983884551,1.8619906,145.39,145.35,11.16]
[1720983884745,18.0375,145.4,145.35,11.16]
[1720983884952,1.86199084,145.39,145.35,11.16]
[1720983885253,18.0375,145.4,145.35,11.16]
[1720983885547,1.86198885,145.39,145.35,11.16]
[1720983885780,18.0375,145.4,145.35,11.16]
[1720983886077,1.86199084,145.39,145.35,11.16]
[1720983886373,18.0375,145.4,145.35,11.16]
[1720983886877,1.86198861,145.39,145.35,11.16]
[1720983887080,18.0375,145.4,145.35,11.16]
[1720983892262,1.86190361,145.39,145.35,11.16]
[1720983892462,18.0375,145.4,145.35,11.16]
[1720983892684,1.86190385,145.39,145.35,11.16]
[1720983892961,18.0375,145.4,145.35,11.16]
[1720983893173,1.86190385,145.39,145.35,11.16]
[1720983893388,18.0375,145.4,145.35,11.16]
[1720983893564,1.86190385,145.39,145.35,11.16]
[1720983893767,18.0375,145.4,145.35,11.16]
[1720983893971,1.86191447,145.39,145.35,11.16]
[1720983894266,18.0375,145.4,145.35,11.16]
[1720983894465,1.86191447,145.39,145.35,11.16]
[1720983894688,18.0375,145.4,145.35,11.16]
[1720983894867,1.86190385,145.39,145.35,11.16]
[1720983895187,18.0375,145.4,145.35,11.16]
[1720983895386,8.73990811,145.39,145.35,11.16]
[1720983895588,6.878,145.39,145.35,11.16]
[1720983904289,18.0377,145.4,145.35,11.16]
[1720983904592,8.73989322,145.39,145.35,11.16]
[1720983904793,6.878,145.39,145.35,11.16]
[1720983906872,17.1911,145.43,145.36,28.95533826]
[1720983907097,1.86189003,145.42,145.39,11.16]
[1720983907279,1.86189003,145.41,145.39,11.16]
[1720983907596,1.86189003,145.4,145.36,16.4195]
[1720983907893,1.86189003,145.4,145.36,27.5795]
[1720983907894,1.86189003,145.39,145.36,27.5795]
[1720983908199,18.0377,145.4,145.36,16.4195]
[1720983908368,1.86188744,145.39,145.36,16.4195]
[1720983908694,11.16,145.4,145.36,16.4195]
[1720983908893,1.86188744,145.39,145.36,16.4195]
[1720983909084,18.0372,145.41,145.36,27.5795]
[1720983909278,1.86188768,145.4,145.36,27.5795]
[1720983909485,1.86188768,145.39,145.36,27.5795]
[1720983909689,18.0372,145.41,145.36,11.16]
[1720983910001,13.0218872,145.4,145.35,11.16]
[1720983910201,1.8618872,145.39,145.35,11.16]
[1720983911907,1.8618872,145.39,145.34,1.37579364]
[1720983912106,11.16,145.38,145.33,16.6518]
[1720983912288,11.16,145.36,145.29,16.6518]
[1720983912602,18.0395,145.36,145.29,16.6518]
[1720983912905,18.0395,145.36,145.31,11.16]
[1720983913081,1.86233925,145.35,145.31,11.16]
[1720983913283,18.0395,145.36,145.31,11.16]
[1720983913482,27.0796,145.39,145.3,11.16]
[1720983913483,13.0223999,145.35,145.3,11.16]
[1720983913678,11.16,145.35,145.3,11.16]
[1720983913879,11.16,145.37,145.32,11.16]
[1720983915404,18.0391,145.37,145.32,11.16]
[1720983916205,19.90169318,145.36,145.31,11.16]
[1720983916402,18.0394,145.36,145.31,11.16]
[1720983919204,11.16,145.36,145.31,11.16]
[1720983921619,6.8791,145.37,145.31,11.16]
[1720983921789,11.16,145.36,145.31,11.16]
[1720983923116,18.0395,145.36,145.29,16.6518]
[1720983923293,11.16,145.34,145.29,16.6518]
[1720983923626,11.16,145.34,145.29,27.8118]
[1720983928301,6.5148,145.37,145.24,16.6518]
[1720983928617,6.5148,145.37,145.27,11.16]
[1720983928618,11.16,145.32,145.27,11.16]
[1720983929406,11.16,145.33,145.27,11.16]
[1720983930519,11.16,145.32,145.27,11.16]
[1720983931797,11.16,145.31,145.26,11.16]
[1720983932218,11.16,145.32,145.27,11.16]
[1720983934499,11.16,145.31,145.26,11.16]
[1720983939299,11.16,145.31,145.29,6.8824]
[1720983941316,11.16,145.3,145.28,6.8831]
[1720983941508,11.16,145.3,145.27,6.8835]
[1720983941710,11.16,145.29,145.27,6.8835]
[1720983944810,11.16,145.29,145.28,6.8832]
[1720983946316,11.16,145.29,145.24,16.6518]
[1720983946622,11.16,145.29,145.24,27.8118]
[1720983947623,11.16,145.29,145.27,6.8836]
[1720983949327,11.16,145.29,145.24,27.8118]
[1720983949626,11.16,145.29,145.26,6.884]
[1720983949829,11.16,145.28,145.25,6.8842]
[1720983950217,6.8823,145.3,145.26,6.884]
[1720983953428,11.16,145.29,145.27,6.8836]
[1720983958115,11.16,145.3,145.27,6.8836]
[1720983959036,6.8819,145.31,145.27,6.8836]
[1720983959229,6.8814,145.32,145.28,6.8831]
[1720983959428,6.8814,145.32,145.28,18.0431]
[1720983961143,9.02349436,145.36,145.28,18.0431]
[1720983961144,6.1727,145.36,145.28,11.16]
[1720983961445,11.16,145.35,145.3,11.16]
[1720983962139,11.16,145.36,145.29,16.69096382]
[1720983962441,11.16,145.36,145.31,11.16]
[1720983962643,18.0395,145.36,145.32,6.8813]
[1720983963445,18.0395,145.36,145.31,11.16]
[1720983965447,6.8799,145.35,145.31,11.16]
[1720983969650,6.8796,145.36,145.31,11.16]
[1720983969840,18.0396,145.36,145.31,11.16]
[1720983971854,18.0396,145.36,145.32,11.16]
[1720983972353,6.8796,145.36,145.32,11.16]
[1720983973348,6.8796,145.36,145.29,15.3146]
[1720983973544,18.0396,145.36,145.31,11.16]
[1720983974127,18.0399,145.35,145.3,11.16]
[1720983974438,6.8804,145.34,145.29,15.3146]
[1720983974640,18.0404,145.34,145.29,11.16]
[1720983975432,11.16,145.34,145.29,11.16]
[1720983976634,11.16,145.34,145.31,6.8817]
[1720983978253,11.16,145.34,145.29,11.16]
[1720983978750,11.16,145.35,145.3,11.16]
[1720983981154,11.16,145.34,145.29,11.16]
[1720983983754,22.2798,145.38,145.26,15.029]
[1720983983965,15.4009,145.38,145.33,11.16]
[1720983984261,6.1727,145.39,145.35,11.16]
[1720983984459,17.3327,145.39,145.34,11.16]
[1720983984956,11.16,145.38,145.33,11.16]
[1720983988873,6.1727,145.39,145.35,11.16]
[1720983994160,6.8772,145.41,145.36,11.16]
[1720983994345,26.2267,145.42,145.37,11.16]
[1720983994555,11.16,145.41,145.36,11.16]
[1720983995061,11.16,145.4,145.35,11.16]
[1720983995267,18.0375,145.4,145.35,11.16]
[1720983998656,11.16,145.4,145.35,11.16]
[1720984001752,18.0376,145.4,145.34,11.16]
[1720984001971,6.8776,145.4,145.34,11.16]
[1720984002171,18.0376,145.4,145.34,11.16]
[1720984002873,11.16,145.4,145.34,11.16]
[1720984005454,11.16,145.4,145.33,16.0005]
[1720984005455,18.0376,145.4,145.33,16.0005]
[1720984005651,18.0376,145.4,145.35,11.16]
[1720984005876,24.2498,145.4,145.35,11.16]
[1720984006554,17.3722,145.4,145.35,11.16]
[1720984014275,6.2122,145.4,145.35,11.16]
[1720984014466,6.2122,145.4,145.36,11.16]
[1720984015184,15.0667,145.42,145.37,11.16]
[1720984015367,26.2267,145.42,145.37,11.16]
[1720984016676,15.0667,145.42,145.38,11.16]
[1720984019875,15.0667,145.42,145.39,11.16]
[1720984020064,6.6513,145.43,145.39,11.16]
[1720984020265,6.6513,145.43,145.4,11.16]
[1720984020577,6.6513,145.43,145.39,11.16]
[1720984021171,6.6513,145.43,145.4,11.16]
[1720984022389,13.5275,145.43,145.33,16.5347]
[1720984022574,13.5275,145.43,145.39,11.16]
[1720984023176,24.6875,145.43,145.38,11.16]
[1720984024290,17.8113,145.43,145.38,11.16]
[1720984025190,6.6513,145.43,145.39,11.16]
[1720984028092,1.86166852,145.42,145.33,16.5347]
[1720984028292,11.16,145.42,145.37,11.16]
[1720984031083,17.8113,145.43,145.38,11.16]
[1720984031288,1.86165814,145.42,145.38,11.16]
[1720984031487,17.8113,145.43,145.38,11.16]
[1720984031677,1.86165814,145.42,145.38,11.16]
[1720984031987,17.8113,145.43,145.38,11.16]
[1720984033583,1.86166876,145.42,145.38,11.16]
[1720984033783,17.8113,145.43,145.38,11.16]
[1720984033966,1.86166876,145.42,145.38,11.16]
[1720984034287,17.8113,145.43,145.38,11.16]
[1720984034789,1.86166876,145.42,145.38,11.16]
[1720984034994,17.8113,145.43,145.38,11.16]
[1720984035166,1.86166876,145.42,145.38,11.16]
[1720984035363,17.8113,145.43,145.38,11.16]
[1720984035567,1.86166876,145.42,145.38,11.16]
[1720984035875,17.8113,145.43,145.38,11.16]
[1720984036079,1.86166876,145.42,145.38,11.16]
[1720984036292,17.8113,145.43,145.38,11.16]
[1720984039305,17.8113,145.43,145.33,16.5347]
[1720984039469,17.8113,145.43,145.37,11.16]
[1720984039470,6.6513,145.43,145.37,11.16]
[1720984039670,70.06520155,145.42,145.35,11.16]
[1720984039995,70.06520155,145.42,145.33,16.5347]
[1720984039996,13.02173463,145.41,145.36,11.16]
[1720984040173,11.16,145.41,145.36,11.16]
[1720984040576,18.0372,145.41,145.33,16.5347]
[1720984040794,11.16,145.4,145.34,11.16]
[1720984043080,11.16,145.4,145.35,11.16]
[1720984043476,11.16,145.41,145.36,11.16]
[1720984043793,11.16,145.41,145.35,11.16]
[1720984044993,23.2033,145.42,145.35,11.16]
[1720984045192,11.16,145.4,145.35,11.16]
[1720984061500,11.16,145.41,145.35,11.16]
[1720984061898,1.86195672,145.4,145.35,11.16]
[1720984062108,11.16,145.41,145.35,11.16]
[1720984062291,1.86194634,145.4,145.35,11.16]
[1720984062489,11.16,145.4,145.35,11.16]
[1720984064211,11.16,145.41,145.35,11.16]
[1720984064417,1.86188259,145.4,145.35,11.16]
[1720984064601,11.16,145.41,145.35,11.16]
[1720984064896,1.86188235,145.4,145.35,11.16]
[1720984065103,11.16,145.41,145.35,11.16]
[1720984065302,1.86187173,145.4,145.35,11.16]
[1720984065520,11.16,145.41,145.35,11.16]
[1720984065823,1.86187197,145.4,145.35,11.16]
[1720984066023,11.16,145.41,145.35,11.16]
[1720984066201,1.86187173,145.4,145.35,11.16]
[1720984066418,11.16,145.41,145.35,11.16]
[1720984066622,1.86187197,145.4,145.35,11.16]
[1720984066909,11.16,145.41,145.35,11.16]
[1720984067117,13.02187173,145.4,145.35,11.16]
[1720984067311,11.16,145.4,145.35,11.16]
[1720984067506,13.02196227,145.39,145.34,11.16]
[1720984067818,11.16,145.39,145.34,11.16]
[1720984068719,11.16,145.39,145.33,15.9273]
[1720984069021,11.16,145.38,145.33,27.0873]
[1720984069897,11.16,145.38,145.34,11.16]
[1720984070227,11.16,145.39,145.34,11.16]
[1720984073310,18.0376,145.4,145.35,11.16]
[1720984073525,1.86197337,145.39,145.35,11.16]
[1720984073822,18.0376,145.4,145.35,11.16]
[1720984074026,1.86201539,145.39,145.35,11.16]
[1720984074323,18.0376,145.4,145.35,11.16]
[1720984074524,1.86199438,145.39,145.35,11.16]
[1720984074719,18.0376,145.4,145.35,11.16]
[1720984074895,13.02202626,145.39,145.34,11.16]
[1720984075217,11.16,145.39,145.34,11.16]
[1720984078102,18.038,145.39,145.34,11.16]
[1720984080416,11.16,145.39,145.34,12.53593715]
[1720984083233,1.86205838,145.38,145.34,12.53593715]
[1720984083416,11.16,145.39,145.34,12.53593715]
[1720984083618,1.86204775,145.38,145.34,12.53593715]
[1720984083816,11.16,145.39,145.34,12.53593715]
[1720984084019,1.86204775,145.38,145.34,12.53593715]
[1720984084229,11.16,145.39,145.34,12.53593715]
[1720984084409,1.86206688,145.38,145.34,12.53593715]
[1720984084609,11.16,145.39,145.34,12.53593715]
[1720984084811,1.862069,145.38,145.34,12.53593715]
[1720984085129,11.16,145.39,145.34,12.53593715]
[1720984085317,1.86201611,145.38,145.34,12.53593715]
[1720984085502,11.16,145.39,145.34,12.53593715]
[1720984086432,1.86204775,145.38,145.33,15.9273]
[1720984086631,18.0381,145.39,145.34,11.16]
[1720984086812,1.86204792,145.38,145.34,11.16]
[1720984087003,18.0381,145.39,145.34,11.16]
[1720984087210,1.86204792,145.38,145.33,27.0873]
[1720984087511,18.0381,145.39,145.33,27.0873]
[1720984087713,1.86204841,145.38,145.33,27.0873]
[1720984087910,11.16,145.39,145.34,11.16]
[1720984088108,1.86205901,145.38,145.34,12.53587341]
[1720984088329,11.16,145.4,145.35,11.16]
[1720984088522,1.86200547,145.39,145.35,11.16]
[1720984088723,1.86200547,145.38,145.35,11.16]
[1720984089034,11.16,145.4,145.35,11.16]
[1720984089237,1.8619835,145.39,145.35,11.16]
[1720984089433,18.0376,145.4,145.35,11.16]
[1720984089613,1.8619835,145.39,145.35,11.16]
[1720984089816,18.0376,145.4,145.35,11.16]
[1720984090132,1.86198175,145.39,145.35,11.16]
[1720984090434,18.0376,145.4,145.35,11.16]
[1720984090731,1.86197112,145.39,145.35,11.16]
[1720984090934,18.0376,145.4,145.35,11.16]
[1720984091231,1.86197287,145.39,145.35,11.16]
[1720984091414,18.0376,145.4,145.35,11.16]
[1720984091615,1.86197287,145.39,145.35,11.16]
[1720984091923,18.0376,145.4,145.35,11.16]
[1720984092113,1.86197312,145.39,145.35,11.16]
[1720984092438,1.86197312,145.38,145.34,11.16]
[1720984092643,6.878,145.39,145.34,11.16]
[1720984093247,1.86204773,145.38,145.34,11.16]
[1720984093538,6.878,145.39,145.35,12.53505884]
[1720984093744,1.86204797,145.38,145.35,12.53505884]
[1720984094039,6.878,145.39,145.35,12.53505884]
[1720984094331,1.86204773,145.38,145.35,12.53505884]
[1720984094534,18.0377,145.4,145.35,12.53505884]
[1720984094737,1.86204773,145.39,145.35,11.16]
[1720984094908,1.86204773,145.38,145.35,11.16]
[1720984095108,18.0377,145.4,145.35,11.16]
[1720984095332,1.86205788,145.39,145.35,11.16]
[1720984095527,1.86205788,145.38,145.35,11.16]
[1720984095726,1.86205788,145.39,145.35,11.16]
[1720984096033,1.86205812,145.38,145.35,11.16]
[1720984096326,18.0377,145.4,145.35,11.16]
[1720984096524,1.86205836,145.39,145.35,11.16]
[1720984096733,1.86205836,145.38,145.35,11.16]
[1720984096913,18.0377,145.4,145.35,11.16]
[1720984097237,8.7400685,145.39,145.35,11.16]
[1720984097438,1.8620685,145.38,145.35,11.16]
[1720984099341,6.878,145.39,145.35,11.16]
[1720984099543,1.86204749,145.38,145.35,11.16]
[1720984099842,6.878,145.39,145.35,11.16]
[1720984100039,1.86204773,145.38,145.35,11.16]
[1720984100210,6.878,145.39,145.35,11.16]
[1720984100410,1.86204749,145.38,145.35,11.16]
[1720984100632,6.878,145.39,145.35,11.16]
[1720984100817,1.86205836,145.38,145.35,11.16]
[1720984101018,6.878,145.39,145.35,11.16]
[1720984101234,1.86205812,145.38,145.35,11.16]
[1720984101441,6.878,145.39,145.35,11.16]
[1720984101644,1.86206899,145.38,145.35,11.16]
[1720984101937,6.878,145.39,145.35,11.16]
[1720984102245,1.86206899,145.38,145.35,11.16]
[1720984102421,6.878,145.39,145.35,11.16]
[1720984102620,1.86205503,145.38,145.35,11.16]
[1720984102829,6.878,145.39,145.35,11.16]
[1720984103029,1.86205479,145.38,145.35,11.16]
[1720984103225,6.8767,145.42,145.37,11.16]
[1720984103429,1.86184828,145.41,145.37,11.16]
[1720984103631,1.86184828,145.4,145.37,11.16]
[1720984103816,6.8767,145.42,145.37,11.16]
[1720984104018,1.8618483,145.41,145.37,11.16]
[1720984104219,1.8618483,145.4,145.37,11.16]
[1720984104439,6.8767,145.42,145.37,11.16]
[1720984104622,1.86185554,145.41,145.37,11.16]
[1720984104822,1.86185554,145.4,145.38,11.16]
[1720984105014,6.8767,145.42,145.38,11.16]
[1720984105218,1.86185482,145.41,145.38,11.16]
[1720984105419,1.86185482,145.4,145.37,11.16]
[1720984105732,18.0367,145.42,145.37,11.16]
[1720984105912,1.86185506,145.41,145.37,11.16]
[1720984106118,1.86185506,145.4,145.37,11.16]
[1720984106337,18.0367,145.42,145.37,11.16]
[1720984106524,1.86185506,145.41,145.37,11.16]
[1720984106726,1.86185506,145.4,145.37,11.16]
[1720984106932,1.86185506,145.41,145.37,11.16]
[1720984109721,18.0367,145.42,145.37,11.16]
[1720984109927,1.86184468,145.41,145.37,11.16]
[1720984110228,1.86184468,145.4,145.37,11.16]
[1720984110427,18.0367,145.42,145.37,11.16]
[1720984110628,1.86184492,145.41,145.37,11.16]
[1720984110850,1.86184492,145.4,145.37,11.16]
[1720984111035,18.0367,145.42,145.37,11.16]
[1720984111338,1.86185554,145.41,145.37,11.16]
[1720984111550,1.86185554,145.4,145.37,11.16]
[1720984111847,18.0367,145.42,145.37,11.16]
[1720984112051,1.86185554,145.41,145.37,11.16]
[1720984112258,1.86185554,145.4,145.37,11.16]
[1720984112547,18.0367,145.42,145.37,11.16]
[1720984112751,1.86176987,145.41,145.37,11.16]
[1720984112957,1.86176987,145.4,145.37,11.16]
[1720984113249,18.0367,145.42,145.37,11.16]
[1720984113435,1.86177182,145.41,145.37,11.16]
[1720984113640,1.86176829,145.4,145.37,11.16]
[1720984113951,18.0367,145.42,145.37,11.16]
[1720984114251,1.86175994,145.41,145.37,11.16]
[1720984114451,18.0367,145.42,145.37,11.16]
[1720984114752,1.86177008,145.41,145.37,11.16]
[1720984115053,18.0367,145.42,145.37,11.16]
[1720984115350,1.86177032,145.41,145.37,11.16]
[1720984115552,18.0367,145.42,145.37,11.16]
[1720984115759,1.86177032,145.41,145.37,11.16]
[1720984116047,18.0367,145.42,145.37,11.16]
[1720984116244,1.86177032,145.41,145.37,11.16]
[1720984116424,18.0367,145.42,145.37,11.16]
[1720984116627,1.86177008,145.41,145.37,11.16]
[1720984116828,18.0367,145.42,145.37,11.16]
[1720984117028,1.86177008,145.41,145.37,11.16]
[1720984117243,18.0367,145.42,145.37,11.16]
[1720984117554,1.86177032,145.41,145.37,11.16]
[1720984117733,18.0367,145.42,145.37,11.16]
[1720984117934,1.86178065,145.41,145.37,11.16]
[1720984118155,18.0367,145.42,145.37,11.16]
[1720984118333,1.86178065,145.41,145.37,11.16]
[1720984118533,18.0367,145.42,145.37,11.16]
[1720984118742,1.86177026,145.41,145.37,11.16]
[1720984119033,18.0367,145.42,145.37,11.16]
[1720984119237,1.86177026,145.41,145.37,11.16]
[1720984119529,18.0367,145.42,145.37,11.16]
[1720984119734,1.86177026,145.41,145.37,11.16]
[1720984119936,18.0367,145.42,145.37,11.16]
[1720984120336,1.86177002,145.41,145.37,11.16]
[1720984120553,18.0367,145.42,145.37,11.16]
[1720984120742,1.86177026,145.41,145.37,11.16]
[1720984120941,18.0367,145.42,145.37,11.16]
[1720984121154,1.86177026,145.41,145.37,11.16]
[1720984121456,18.0367,145.42,145.37,11.16]
[1720984121650,1.8617594,145.41,145.37,11.16]
[1720984121849,18.0367,145.42,145.37,11.16]
[1720984122149,1.8617594,145.41,145.37,11.16]
[1720984122345,18.0367,145.42,145.37,11.16]
[1720984122548,1.86177002,145.41,145.37,11.16]
[1720984122754,18.0367,145.42,145.37,11.16]
[1720984122955,1.86177002,145.41,145.37,11.16]
[1720984123173,18.0367,145.42,145.37,11.16]
[1720984123337,1.86178065,145.41,145.37,11.16]
[1720984123537,18.0367,145.42,145.37,11.16]
[1720984123767,1.86178065,145.41,145.37,11.16]
[1720984123949,18.0367,145.42,145.37,11.16]
[1720984124149,1.86177002,145.41,145.37,11.16]
[1720984124346,18.0367,145.42,145.37,11.16]
[1720984124644,1.86177026,145.41,145.37,11.16]
[1720984124845,18.0367,145.42,145.37,11.16]
[1720984125051,1.86177026,145.41,145.37,11.16]
[1720984125264,11.16,145.42,145.37,11.16]
[1720984125563,1.86177026,145.41,145.37,11.16]
[1720984125765,11.16,145.42,145.37,11.16]
[1720984126060,1.86177026,145.41,145.37,11.16]
[1720984126265,11.16,145.42,145.37,11.16]
[1720984126471,1.86177002,145.41,145.37,11.16]
[1720984126762,11.16,145.42,145.37,11.16]
[1720984126961,1.86177026,145.41,145.37,11.16]
[1720984127165,11.16,145.42,145.37,11.16]
[1720984127461,1.86177026,145.41,145.37,11.16]
[1720984127644,6.8763,145.43,145.37,11.16]
[1720984127963,13.02176978,145.42,145.37,11.16]
[1720984128167,1.86176978,145.41,145.37,11.16]
[1720984130679,11.16,145.42,145.37,11.16]
[1720984130848,1.86177002,145.41,145.37,11.16]
[1720984131048,11.16,145.42,145.37,11.16]
[1720984131248,1.86177026,145.41,145.37,11.16]
[1720984131449,11.16,145.42,145.37,11.16]
[1720984131746,1.86177026,145.41,145.37,11.16]
[1720984131967,11.16,145.42,145.37,11.16]
[1720984132171,1.86177026,145.41,145.37,11.16]
[1720984132344,11.16,145.42,145.37,11.16]
[1720984132545,1.86177026,145.41,145.37,11.16]
[1720984132782,11.16,145.42,145.37,11.16]
[1720984132959,1.86177002,145.41,145.37,11.16]
[1720984133266,11.16,145.42,145.37,11.16]
[1720984133448,1.86177002,145.41,145.37,11.16]
[1720984133647,11.16,145.42,145.37,11.16]
[1720984133848,1.86177002,145.41,145.37,11.16]
[1720984134072,11.16,145.42,145.37,11.16]
[1720984134281,1.86177002,145.41,145.37,11.16]
[1720984134570,11.16,145.42,145.37,11.16]
[1720984134879,1.86177002,145.41,145.37,11.16]
[1720984135046,11.16,145.42,145.37,11.16]
[1720984135247,1.86177002,145.41,145.37,11.16]
[1720984135475,11.16,145.42,145.37,11.16]
[1720984135677,1.86177002,145.41,145.37,11.16]
[1720984135861,11.16,145.42,145.37,11.16]
[1720984136050,1.86177026,145.41,145.37,11.16]
[1720984136350,11.16,145.42,145.37,11.16]
[1720984136550,1.86177026,145.41,145.37,11.16]
[1720984136749,11.16,145.42,145.37,11.16]
[1720984136950,1.86177002,145.41,145.37,11.16]
[1720984137166,11.16,145.42,145.37,11.16]
[1720984137346,1.86177002,145.41,145.37,11.16]
[1720984137565,18.0363,145.43,145.37,11.16]
[1720984137764,1.86176978,145.42,145.37,11.16]
[1720984138067,1.86176978,145.41,145.37,11.16]
[1720984138278,1.86176978,145.42,145.37,11.16]
[1720984139963,1.86176978,145.42,145.38,1.37561882]
[1720984140782,1.86177,145.41,145.38,1.37561882]
[1720984141077,18.0363,145.43,145.38,1.37561882]
[1720984141279,1.8617596,145.42,145.38,1.37561882]
[1720984141492,1.8617596,145.41,145.37,16.0274]
[1720984141654,18.0366,145.42,145.37,16.0274]
[1720984141855,13.02175983,145.41,145.37,16.0274]
[1720984142062,11.16,145.41,145.37,16.0274]
[1720984143286,1.86177046,145.4,145.37,16.0274]
[1720984143490,11.16,145.41,145.37,16.0274]
[1720984143787,1.86177046,145.4,145.37,16.0274]
[1720984144079,11.16,145.42,145.37,16.0274]
[1720984144277,11.16,145.4,145.37,16.0274]
[1720984144486,1.86185569,145.39,145.37,16.0274]
[1720984144683,1.86185569,145.39,145.34,11.16]
[1720984144862,1.86185569,145.39,145.33,27.1874]
[1720984145061,11.16,145.38,145.33,27.1874]
[1720984146083,3.13561394,145.37,145.33,27.1874]
[1720984146265,11.16,145.38,145.33,27.1874]
[1720984146578,14.29561767,145.37,145.33,16.0274]
[1720984146790,11.16,145.37,145.33,16.0274]
[1720984148170,6.8781,145.39,145.33,16.0274]
[1720984148171,11.16,145.36,145.33,16.0274]
[1720984149002,11.16,145.37,145.33,16.0274]
[1720984152263,21.6293,145.42,145.33,27.1874]
[1720984152470,11.16,145.4,145.35,11.16]
[1720984152671,3.13565685,145.39,145.35,11.16]
[1720984152881,3.13565685,145.38,145.35,11.16]
[1720984153085,11.16,145.4,145.35,11.16]
[1720984153395,3.13563075,145.39,145.35,11.16]
[1720984153586,11.16,145.4,145.35,11.16]
[1720984153780,3.13560577,145.39,145.33,22.2178]
[1720984154092,11.16,145.4,145.35,11.16]
[1720984154293,14.29560166,145.39,145.34,11.16]
[1720984154486,3.13560166,145.38,145.34,11.16]
[1720984156900,11.16,145.39,145.34,11.16]
[1720984157070,3.13565569,145.38,145.34,11.16]
[1720984157399,11.16,145.39,145.34,11.16]
[1720984157574,3.13565646,145.38,145.34,11.16]
[1720984157776,11.16,145.39,145.34,11.16]
[1720984157976,3.13566238,145.38,145.34,11.16]
[1720984158178,11.16,145.39,145.34,11.16]
[1720984158477,3.13568818,145.38,145.34,11.16]
[1720984158702,11.16,145.39,145.34,11.16]
[1720984158883,3.13565935,145.38,145.34,11.16]
[1720984159087,11.16,145.39,145.34,11.16]
[1720984159400,3.13566012,145.38,145.34,11.16]
[1720984159609,11.16,145.39,145.34,11.16]
[1720984159773,3.13565646,145.38,145.34,11.16]
[1720984160104,11.16,145.39,145.34,11.16]
[1720984160311,3.13562398,145.38,145.34,11.16]
[1720984160596,11.16,145.39,145.34,11.16]
[1720984160799,3.13562337,145.38,145.34,11.16]
[1720984161005,11.16,145.39,145.34,11.16]
[1720984161297,3.13565646,145.38,145.34,11.16]
[1720984161490,11.16,145.39,145.34,11.16]
[1720984161789,3.13565646,145.38,145.34,11.16]
[1720984161998,11.16,145.39,145.34,11.16]
[1720984162184,3.13570864,145.38,145.34,11.16]
[1720984162503,11.16,145.39,145.34,11.16]
[1720984162685,3.1357042,145.38,145.34,11.16]
[1720984162878,11.16,145.39,145.34,11.16]
[1720984163078,3.13567248,145.38,145.34,11.16]
[1720984163296,11.16,145.39,145.34,11.16]
[1720984163502,3.13567325,145.38,145.34,11.16]
[1720984163713,11.16,145.39,145.34,11.16]